bitfinex/quotes_SOLUSD_20250406
["timestamp","ask_amount","ask_price","bid_price","bid_amount"]
[1743970892699,44.79432119,107.85,107.84,0.063]
[1743970893233,9.98,107.86,107.84,0.063]
[1743970893522,37.94376528,107.86,107.84,0.063]
[1743970893727,9.98,107.86,107.84,0.063]
[1743970894022,37.94376528,107.86,107.84,0.063]
[1743970894203,9.98,107.86,107.84,0.063]
[1743970894807,109.30592685,107.87,107.84,0.063]
[1743970895121,119.28592685,107.87,107.84,0.063]
[1743970895427,27.96376528,107.86,107.84,0.063]
[1743970896140,37.94376528,107.87,107.84,0.063]
[1743970896424,9.98,107.88,107.84,34.36566528]
[1743970896618,37.94376528,107.88,107.84,6.4019]
[1743970896824,27.96376528,107.87,107.84,6.4019]
[1743970898326,27.96376528,107.87,107.85,9.2721]
[1743970898529,437.61046157,107.9,107.85,9.2721]
[1743970898530,27.96376528,107.89,107.85,9.2721]
[1743970898723,347.0,107.9,107.88,27.96376528]
[1743970898923,27.96376528,107.95,107.9,24.98854886]
[1743970899230,347.22,107.96,107.94,27.96376528]
[1743970900018,0.03,107.97,107.91,20.14994886]
[1743970900019,0.03,107.97,107.95,46.61341414]
[1743970900213,0.03,107.97,107.95,27.96376528]
[1743970900628,0.03,107.97,107.96,9.2626]
[1743970901416,0.03,107.97,107.95,9.2631]
[1743970905637,44.66423271,107.99,107.97,20.14994886]
[1743970905638,0.03,107.99,107.97,20.14994886]
[1743970905840,0.03,108.02,107.99,18.64964886]
[1743970906019,0.03,108.02,108.01,18.64964886]
[1743970906218,0.03,108.02,108.01,63.28388157]
[1743970906429,0.0001,108.02,108.01,63.28388157]
[1743970907522,0.0001,108.02,108.01,72.96876628]
[1743970907824,0.03,108.04,108.03,44.63423271]
[1743970908627,0.03,108.04,108.02,50.66783271]
[1743970908835,0.03,108.04,108.02,24.68324886]
[1743970909247,0.03,108.04,108.01,77.03863271]
[1743970909542,0.03,108.04,108.02,63.28388157]
[1743970910029,0.03,108.04,108.0,44.63423271]
[1743970910235,44.66423271,108.04,108.0,18.64964886]
[1743970910442,0.03,108.04,108.0,63.28388157]
[1743970910627,44.66423271,108.04,108.0,18.64964886]
[1743970910828,0.03,108.04,108.02,18.64964886]
[1743970911025,0.03,108.04,108.03,44.63423271]
[1743970911229,0.03,108.04,108.02,44.63423271]
[1743970911845,0.03,108.04,108.0,77.04153271]
[1743970912345,0.03,108.04,108.0,32.4073]
[1743970912521,0.03,108.04,108.01,44.63423271]
[1743970913442,0.03,108.04,108.0,32.4073]
[1743970913630,0.03,108.04,108.0,77.04153271]
[1743970914347,0.03,108.04,108.02,44.63423271]
[1743970914552,0.03,108.04,108.03,44.63423271]
[1743970915254,0.03,108.04,108.02,44.63423271]
[1743970915423,0.03,108.04,108.01,63.28388157]
[1743970916042,0.03,108.04,108.02,9.2575]
[1743970916221,0.03,108.04,108.02,53.89173271]
[1743970916655,0.03,108.04,108.03,44.63423271]
[1743970917034,0.03,108.04,108.02,53.89173271]
[1743970917231,0.03,108.04,108.03,63.28388157]
[1743970918147,0.03,108.04,108.03,53.89083271]
[1743970918449,0.03,108.04,108.03,72.54048157]
[1743970919760,0.03,108.04,108.03,27.90624886]
[1743970920460,0.03,108.04,108.02,44.63423271]
[1743970920461,0.03,108.04,108.02,9.2575]
[1743970920646,44.66423271,108.04,108.02,9.2575]
[1743970920961,54.62423271,108.04,108.01,9.2579]
[1743970921132,52.1829588,108.04,108.01,9.2579]
[1743970921531,44.63423271,108.03,108.0,9.2588]
[1743970922161,44.77639428,108.02,107.96,6.0151]
[1743970922462,44.63423271,108.0,107.96,9.2626]
[1743970922633,9.96,108.0,107.96,53.89683271]
[1743970922831,44.63423271,107.99,107.96,9.2626]
[1743970923040,44.63423271,107.98,107.95,9.2631]
[1743970923652,44.77639428,107.99,107.95,9.2631]
[1743970923860,54.59423271,107.99,107.95,9.2631]
[1743970924460,54.59423271,107.99,107.95,53.89733271]
[1743970924673,9.96,107.99,107.96,44.63423271]
[1743970924962,44.63423271,108.01,107.97,18.64964886]
[1743970925257,44.63423271,108.01,107.96,63.28388157]
[1743970925657,44.63423271,108.0,107.96,63.28388157]
[1743970925856,44.63423271,108.01,107.96,63.28388157]
[1743970926565,44.63423271,108.01,107.97,9.2618]
[1743970926866,44.63423271,108.0,107.97,9.2618]
[1743970927041,44.63423271,107.99,107.97,9.2618]
[1743970927459,44.63423271,108.0,107.97,9.2618]
[1743970927665,44.63423271,108.01,107.97,32.4163]
[1743970927839,44.63423271,108.01,107.97,9.2618]
[1743970929769,44.63423271,107.99,107.96,9.2626]
[1743970930475,346.68,108.02,107.98,53.89513271]
[1743970930662,391.31423271,108.02,107.98,32.4133]
[1743970933174,44.63423271,108.01,107.98,9.2609]
[1743970933374,44.63423271,108.0,107.98,9.2609]
[1743970933874,44.63423271,107.99,107.96,9.2626]
[1743970934052,44.63423271,107.98,107.96,9.2626]
[1743970934675,44.63423271,107.98,107.95,9.2635]
[1743970934979,44.63423271,107.96,107.92,53.90033271]
[1743970935156,54.57423271,107.95,107.92,9.2661]
[1743970935360,44.63423271,107.94,107.92,9.2661]
[1743970936071,54.57423271,107.95,107.92,9.2661]
[1743970937267,9.94,107.95,107.92,32.4314]
[1743970937652,135.91639428,107.98,107.93,44.63423271]
[1743970938451,9.94,107.98,107.94,63.28388157]
[1743970938755,135.77423271,108.02,107.97,44.63423271]
[1743970939056,44.63423271,108.01,107.98,9.2609]
[1743970939260,135.77423271,108.02,107.98,9.2609]
[1743970939457,44.63423271,108.01,107.98,9.2609]
[1743970939657,91.14,108.02,107.98,9.2609]
[1743970939875,44.63423271,108.0,107.98,9.2609]
[1743970940063,44.63423271,108.01,107.98,9.2609]
[1743970940777,0.14216157,108.03,107.99,44.63423271]
[1743970940778,9.94,108.03,107.99,44.63423271]
[1743970941070,44.63423271,108.0,107.96,1.661]
[1743970941272,54.57423271,107.99,107.95,9.2635]
[1743970941483,44.63423271,107.98,107.95,9.2635]
[1743970942376,54.57423271,107.99,107.95,9.2635]
[1743970942756,44.63423271,107.97,107.94,9.2644]
[1743970942953,44.63423271,107.96,107.92,32.4307]
[1743970943353,44.63423271,107.95,107.92,9.2661]
[1743970943555,44.63423271,107.95,107.91,0.063]
[1743970943556,44.77639428,107.93,107.91,0.063]
[1743970943847,44.63423271,107.92,107.91,0.063]
[1743970944052,44.77639428,107.92,107.91,0.063]
[1743970944248,45.06071742,107.92,107.91,0.063]
[1743970944452,391.90071742,107.92,107.91,0.063]
[1743970944868,410.55036628,107.92,107.91,0.063]
[1743970945073,419.81646628,107.92,107.91,0.063]
[1743970945959,347.26648471,107.92,107.91,0.063]
[1743970946162,391.90071742,107.92,107.91,0.063]
[1743970946363,391.47423271,107.92,107.91,0.063]
[1743970946565,346.84,107.92,107.91,0.063]
[1743970947681,391.47423271,107.92,107.91,0.063]
[1743970948375,346.84,107.92,107.91,0.063]
[1743970948577,391.47423271,107.92,107.91,0.063]
[1743970953291,346.84,107.92,107.91,0.063]
[1743970954868,54.57423271,107.94,107.91,0.063]
[1743970955801,0.14216157,107.93,107.91,0.063]
[1743970955980,44.63423271,107.92,107.91,0.063]
[1743970956575,44.77639428,107.92,107.91,0.063]
[1743970956884,144.91036628,107.92,107.91,0.063]
[1743970957192,125.97639428,107.92,107.91,0.063]
[1743970957393,81.2,107.92,107.91,0.063]
[1743970960295,44.63423271,107.93,107.91,0.063]
[1743970964026,9.94,107.94,107.91,0.063]
[1743970964207,0.14216157,107.95,107.91,44.69723271]
[1743970964208,9.94,107.95,107.91,44.69723271]
[1743970964532,54.57423271,107.95,107.91,44.69723271]
[1743970964821,54.57423271,107.95,107.91,0.063]
[1743970965318,44.63423271,107.93,107.91,0.063]
[1743970966497,9.94,107.95,107.91,0.063]
[1743970966715,54.57423271,107.95,107.91,0.063]
[1743970967510,54.57423271,107.95,107.91,9.3299]
[1743970967903,44.63423271,107.94,107.91,9.3299]
[1743970968103,44.63423271,107.93,107.91,9.3299]
[1743970969702,44.63423271,107.93,107.91,0.063]
[1743970970111,81.2,107.96,107.91,44.69723271]
[1743970970317,356.92,107.97,107.91,0.063]
[1743970970521,44.63423271,107.96,107.91,63.34688157]
[1743970970819,44.63423271,107.95,107.91,18.71264886]
[1743970970994,44.63423271,107.96,107.91,63.34688157]
[1743970971741,44.63423271,107.96,107.92,9.2661]
[1743970975405,27.90970318,107.96,107.92,9.2661]
[1743970976227,356.92,107.97,107.92,9.2661]
[1743970976521,347.0,107.97,107.93,46.55935204]
[1743970976730,6.3496,108.02,107.95,27.90970318]
[1743970977025,27.90970318,108.01,107.96,27.90970318]
[1743970977227,37.82970318,108.01,107.97,9.2618]
[1743970977605,37.82970318,108.01,107.97,32.4163]
[1743970977825,28.05186475,108.02,107.97,60.32600318]
[1743970978122,9.92,108.01,107.98,34.39140318]
[1743970978304,9.92,108.01,107.99,29.44110318]
[1743970978507,347.0,108.03,107.99,29.44110318]
[1743970979315,0.03,108.05,108.01,53.83398401]
[1743970980304,0.03,108.05,108.02,44.57558401]
[1743970980926,0.03,108.05,108.01,76.97998401]
[1743970981625,0.03,108.05,108.02,44.57558401]
[1743970982832,0.03,108.05,108.04,44.57558401]
[1743970983126,0.03,108.05,108.03,44.57558401]
[1743970983323,0.03,108.05,108.04,9.2558]
[1743970983525,0.03,108.05,108.0,23.1474]
[1743970983826,44.57558401,108.04,108.0,32.4066]
[1743970984009,44.57558401,108.03,108.0,9.2592]
[1743970984216,44.57558401,108.04,108.0,9.2592]
[1743970984721,44.57558401,108.03,107.99,1.5314]
[1743970985026,0.03,108.05,107.99,10.7911]
[1743970985027,54.49558401,108.02,107.99,10.7911]
[1743970985413,9.92,108.02,107.99,10.7911]
[1743970985615,54.49558401,108.02,107.99,10.7911]
[1743970985824,44.57558401,108.01,107.98,9.2605]
[1743970986409,54.49558401,108.02,107.98,9.2605]
[1743970986603,9.92,108.02,107.98,9.2605]
[1743970986809,54.49558401,108.02,107.98,9.2605]
[1743970987519,9.92,108.02,107.98,9.2605]
[1743970987824,54.49558401,108.02,107.98,9.2605]
[1743970990427,9.92,108.02,107.99,44.57558401]
[1743970990609,0.03,108.05,108.01,44.57558401]
[1743970990811,9.93,108.05,108.01,44.57558401]
[1743970991231,54.50558401,108.05,108.0,44.57558401]
[1743970991433,44.57558401,108.04,108.0,9.2592]
[1743970991811,54.50558401,108.05,108.0,53.83478401]
[1743970992216,54.50558401,108.05,108.0,76.98288401]
[1743970992619,44.57558401,108.04,108.0,32.4073]
[1743970993131,44.57558401,108.02,107.97,9.2618]
[1743970993432,54.47558401,108.01,107.97,9.2618]
[1743970993728,44.57558401,108.0,107.97,9.2618]
[1743970994328,9.9,108.0,107.97,9.2618]
[1743970994530,54.47558401,108.0,107.97,9.2618]
[1743970994835,44.57558401,107.99,107.97,9.2618]
[1743970995034,54.47558401,108.0,107.97,9.2618]
[1743970995223,9.9,108.0,107.98,44.57558401]
[1743970995417,356.66,108.03,107.98,44.57558401]
[1743970995619,401.23558401,108.03,107.98,44.57558401]
[1743970995819,356.66,108.03,107.99,44.57558401]
[1743970996017,356.66,108.03,108.0,44.57558401]
[1743970996018,346.76,108.03,108.0,44.57558401]
[1743970996415,346.76,108.03,107.99,44.57558401]
[1743970997136,346.76,108.03,108.0,9.2592]
[1743970997331,391.33558401,108.03,108.0,9.2592]
[1743970997844,346.76,108.03,108.0,9.2592]
[1743970998139,346.76,108.03,108.0,53.83478401]
[1743970998434,346.76,108.03,108.0,76.98288401]
[1743970998632,9.93,108.05,108.01,44.57558401]
[1743970998942,54.50558401,108.05,108.01,18.64964886]
[1743970999445,44.60558401,108.05,108.02,9.2575]
[1743970999641,54.50558401,108.05,108.02,9.2575]
[1743971000031,44.57558401,108.04,108.01,9.258]
[1743971000238,44.57558401,108.03,107.99,9.2601]
[1743971000742,44.57558401,108.02,107.99,9.2601]
[1743971000925,9.9,108.01,107.99,9.2601]
[1743971001524,9.9,108.01,107.98,32.4126]
[1743971001847,9.9,108.01,107.98,9.2609]
[1743971002044,44.57558401,108.0,107.97,9.2613]
[1743971003718,19.1586,108.01,107.97,9.2613]
[1743971004037,44.57558401,108.0,107.97,9.2613]
[1743971004550,54.47558401,108.01,107.97,9.2613]
[1743971004849,9.9,108.01,107.97,76.99138401]
[1743971005149,9.9,108.01,107.97,32.4158]
[1743971005324,9.9,108.01,107.98,44.57558401]
[1743971005727,9.9,108.01,107.97,76.99138401]
[1743971006129,54.47558401,108.01,107.97,9.2613]
[1743971006652,0.14216157,108.0,107.97,9.2613]
[1743971006852,0.14216157,108.0,107.96,46.11078401]
[1743971006853,44.57558401,107.99,107.96,9.2625]
[1743971007715,44.57558401,107.99,107.95,0.063]
[1743971007716,44.57558401,107.97,107.95,0.063]
[1743971007917,9.9,107.96,107.95,0.063]
[1743971008117,54.47558401,107.96,107.95,0.063]
[1743971008842,9.9,107.96,107.95,0.063]
[1743971009049,54.47558401,107.96,107.95,0.063]
[1743971009644,64.16466872,107.96,107.95,0.063]
[1743971009950,82.81431758,107.96,107.95,0.063]
[1743971010655,0.14216157,107.94,107.93,0.063]
[1743971010945,128.22730159,107.94,107.93,0.063]
[1743971011648,132.75862887,107.94,107.93,0.063]
[1743971012217,142.02302887,107.94,107.93,0.063]
[1743971013148,109.65171758,107.92,107.91,0.063]
[1743971013323,0.42648471,107.91,107.9,0.063]
[1743971014158,0.42648471,107.91,107.86,0.063]
[1743971014159,26.42648471,107.87,107.86,0.063]
[1743971014450,99.55171758,107.87,107.86,0.063]
[1743971015151,180.75171758,107.87,107.86,0.063]
[1743971016153,190.02211758,107.87,107.86,0.063]
[1743971016448,162.10206872,107.87,107.86,0.063]
[1743971017229,81.2,107.87,107.86,0.063]
[1743971017442,9.9,107.87,107.86,0.063]
[1743971020750,54.47558401,107.87,107.86,0.063]
[1743971021537,64.17246872,107.87,107.86,0.063]
[1743971022465,82.82211758,107.87,107.86,0.063]
[1743971023729,82.82211758,107.87,107.84,0.063]
[1743971023730,44.79181043,107.85,107.84,0.063]
[1743971023939,89.36739444,107.85,107.84,0.063]
[1743971024547,89.65171758,107.85,107.84,0.063]
[1743971025065,98.92381758,107.85,107.84,0.063]
[1743971025232,152.20206872,107.85,107.84,0.063]
[1743971026560,81.34216157,107.85,107.84,0.063]
[1743971026736,135.81774558,107.85,107.84,0.063]
[1743971027142,91.1,107.85,107.84,0.063]
[1743971028054,356.45412314,107.88,107.84,0.063]
[1743971028055,346.9,107.88,107.84,0.063]
[1743971028357,54.47558401,107.87,107.84,0.063]
[1743971029959,53.70770882,107.87,107.84,0.063]
[1743971030754,44.57558401,107.86,107.84,0.063]
[1743971030947,44.57558401,107.85,107.84,0.063]
[1743971031340,44.71774558,107.86,107.84,0.063]
[1743971032257,9.13212481,107.87,107.84,0.063]
[1743971033058,9.13212481,107.87,107.84,53.91148401]
[1743971033367,356.8,107.88,107.85,44.57558401]
[1743971034269,346.9,107.88,107.85,44.57558401]
[1743971034472,346.9,107.88,107.84,78.75688401]
[1743971034772,391.47558401,107.88,107.84,10.9989]
[1743971037374,44.57558401,107.88,107.84,10.9989]
[1743971037782,44.57558401,107.86,107.84,0.063]
[1743971037971,9.9,107.85,107.84,0.063]
[1743971038785,54.61774558,107.85,107.84,0.063]
[1743971038961,73.55171758,107.85,107.84,0.063]
[1743971039993,82.82381758,107.85,107.84,0.063]
[1743971040356,64.17416872,107.85,107.84,0.063]
[1743971040675,54.61774558,107.85,107.84,0.063]
[1743971040871,82.82381758,107.85,107.84,0.063]
[1743971041083,64.17416872,107.85,107.84,0.063]
[1743971041863,54.27416872,107.85,107.84,0.063]
[1743971042063,64.17416872,107.85,107.84,0.063]
[1743971045968,82.82381758,107.85,107.84,0.063]
[1743971047085,64.17416872,107.85,107.84,0.063]
[1743971049095,10.04216157,107.85,107.84,0.063]
[1743971049302,9.88,107.85,107.84,0.063]
[1743971049492,9.88,107.86,107.84,0.063]
[1743971049691,45.00206872,107.85,107.84,0.063]
[1743971050175,44.71774558,107.85,107.84,0.063]
[1743971052498,391.91558401,107.87,107.84,0.063]
[1743971052679,9.88,107.86,107.84,0.063]
[1743971056303,391.91558401,107.87,107.84,0.063]
[1743971056478,9.88,107.86,107.84,0.063]
[1743971058192,31.23449467,107.9,107.84,0.063]
[1743971058193,81.263,107.92,107.85,34.00053029]
[1743971058506,0.063,107.92,107.91,27.95763029]
[1743971059009,0.063,107.92,107.91,34.00053029]
[1743971059188,0.063,107.92,107.89,27.95763029]
[1743971059881,0.063,107.92,107.88,6.5725]
[1743971060089,0.063,107.92,107.89,27.95763029]
[1743971060309,0.063,107.92,107.89,9.2681]
[1743971060685,0.063,107.92,107.89,37.22573029]
[1743971061407,0.063,107.92,107.89,53.94831932]
[1743971062605,0.063,107.92,107.9,44.68021932]
[1743971063703,0.063,107.92,107.89,53.94831932]
[1743971066207,0.063,107.92,107.88,60.52191932]
[1743971066513,0.063,107.92,107.89,44.68021932]
[1743971067513,0.063,107.92,107.89,53.94801932]
[1743971070106,0.063,107.92,107.89,77.11971932]
[1743971070710,0.063,107.92,107.9,44.68021932]
[1743971072214,0.063,107.92,107.91,9.2669]
[1743971072638,19.13913357,107.92,107.86,1.5508]
[1743971072802,44.68021932,107.9,107.86,1.5508]
[1743971073113,9.86,107.89,107.86,1.5508]
[1743971073317,9.86,107.89,107.86,10.8216]
[1743971076616,9.86,107.89,107.86,55.50181932]
[1743971078321,9.86,107.89,107.88,44.68021932]
[1743971079002,9.86,107.89,107.87,44.68021932]
[1743971080004,9.86,107.91,107.87,44.68021932]
[1743971080320,54.54021932,107.91,107.88,9.2695]
[1743971080501,54.54021932,107.91,107.87,53.95021932]
[1743971080701,9.86,107.91,107.87,53.95021932]
[1743971082822,9.86,107.91,107.86,10.8216]
[1743971082823,44.82238089,107.9,107.86,10.8216]
[1743971083008,0.14216157,107.9,107.86,9.2708]
[1743971083326,0.063,107.92,107.89,29.49188313]
[1743971083503,0.063,107.92,107.91,27.92018313]
[1743971083904,30.063,107.94,107.91,56.2632167]
[1743971084108,0.063,107.94,107.93,27.92018313]
[1743971084417,0.063,107.94,107.92,27.92018313]
[1743971084620,0.063,107.94,107.91,32.4343]
[1743971084621,0.063,107.94,107.93,27.92018313]
[1743971085915,0.063,107.94,107.93,37.18538313]
[1743971087723,26.0,107.93,107.89,9.2686]
[1743971087927,28.0623447,107.93,107.89,9.2686]
[1743971088619,0.14216157,107.93,107.89,37.18878313]
[1743971088930,27.92018313,107.92,107.88,9.2691]
[1743971089330,44.69205832,107.92,107.88,9.2691]
[1743971089837,53.95845832,107.92,107.88,9.2691]
[1743971090532,9.2664,107.92,107.88,53.96115832]
[1743971091413,53.95845832,107.92,107.88,9.2691]
[1743971092021,28.34173357,107.93,107.88,53.96115832]
[1743971092335,73.03379189,107.93,107.88,53.96115832]
[1743971092512,9.86,107.92,107.88,53.96115832]
[1743971093039,54.55205832,107.92,107.88,9.2691]
[1743971093332,44.83421989,107.91,107.87,9.2701]
[1743971093510,44.83421989,107.91,107.84,0.063]
[1743971093511,70.69205832,107.9,107.84,0.063]
[1743971093712,44.83421989,107.89,107.84,0.063]
[1743971093913,9.86,107.88,107.84,44.75505832]
[1743971094137,9.86,107.88,107.84,54.02765832]
[1743971098747,9.86,107.88,107.84,9.3356]
[1743971098915,9.86,107.88,107.84,54.02765832]
[1743971099118,9.86,107.88,107.85,44.69205832]
[1743971099413,9.84,107.92,107.87,44.69205832]
[1743971099635,9.84,107.92,107.9,44.69205832]
[1743971100540,9.84,107.92,107.91,9.2669]
[1743971101118,9.84,107.92,107.88,44.69205832]
[1743971101730,9.84,107.92,107.89,44.69205832]
[1743971101931,9.84,107.92,107.88,44.69205832]
[1743971103235,9.84,107.92,107.89,9.2686]
[1743971103452,44.83421989,107.91,107.85,23.1792]
[1743971103619,44.83421989,107.91,107.86,44.69205832]
[1743971104049,44.83421989,107.89,107.85,9.2721]
[1743971104366,44.83421989,107.87,107.84,0.063]
[1743971104643,44.69205832,107.86,107.84,0.063]
[1743971104832,63.76819189,107.85,107.84,0.063]
[1743971105221,73.04029189,107.85,107.84,0.063]
[1743971106127,420.16029189,107.85,107.84,0.063]
[1743971110529,4.14418061,107.89,107.84,0.063]
[1743971110736,44.69205832,107.86,107.84,0.063]
[1743971110935,54.53205832,107.85,107.84,0.063]
[1743971111254,54.67421989,107.85,107.84,0.063]
[1743971111833,73.32386875,107.85,107.84,0.063]
[1743971112047,73.10819189,107.85,107.84,0.063]
[1743971112447,9.84,107.85,107.84,0.063]
[1743971112956,54.67421989,107.85,107.84,0.063]
[1743971113667,9.98216157,107.85,107.84,0.063]
[1743971114162,9.84,107.85,107.84,0.063]
[1743971114331,26.0,107.85,107.84,0.063]
[1743971114530,0.14216157,107.89,107.84,44.75505832]
[1743971114748,9.98216157,107.89,107.86,44.69205832]
[1743971114953,9.84,107.89,107.86,44.69205832]
[1743971115131,9.84,107.89,107.85,44.69205832]
[1743971115335,347.22,107.91,107.87,44.69205832]
[1743971115546,357.06,107.91,107.87,44.69205832]
[1743971115952,357.06,107.91,107.88,53.96155832]
[1743971120140,357.06,107.91,107.89,44.69205832]
[1743971120141,347.22,107.91,107.89,44.69205832]
[1743971120341,347.22,107.91,107.89,53.96065832]
[1743971121242,347.22,107.91,107.9,44.69205832]
[1743971121764,391.91205832,107.91,107.86,9.2712]
[1743971122062,44.69205832,107.9,107.86,53.96325832]
[1743971122441,9.84,107.89,107.86,9.2712]
[1743971122872,54.53205832,107.89,107.86,9.2712]
[1743971124568,9.84,107.89,107.86,9.2712]
[1743971126575,44.83421989,107.88,107.84,9.3357]
[1743971126760,44.69205832,107.87,107.84,0.063]
[1743971127156,54.10391989,107.88,107.84,9.3358]
[1743971128175,54.10391989,107.88,107.84,0.063]
[1743971128551,54.10391989,107.88,107.84,9.3358]
[1743971129766,91.04,107.89,107.86,44.69205832]
[1743971129767,9.84,107.89,107.86,44.69205832]
[1743971129980,9.84,107.89,107.84,32.5182]
[1743971130151,44.83421989,107.88,107.84,9.3358]
[1743971130742,0.14216157,107.88,107.84,54.02785832]
[1743971130947,9.84,107.89,107.85,44.69205832]
[1743971131371,9.84,107.89,107.85,27.94250997]
[1743971131671,9.84,107.89,107.86,9.2712]
[1743971131849,9.84,107.89,107.85,37.21460997]
[1743971132348,9.84,107.89,107.85,9.2721]
[1743971132555,9.84,107.89,107.85,37.21460997]
[1743971134578,37.78250997,107.89,107.85,9.2721]
[1743971135177,47.05130997,107.89,107.85,9.2721]
[1743971135667,28.08467154,107.88,107.84,0.063]
[1743971135851,27.94250997,107.87,107.84,0.063]
[1743971136163,56.0041204,107.88,107.84,9.3359]
[1743971137770,27.94250997,107.87,107.84,0.063]
[1743971138075,56.0041204,107.88,107.84,0.063]
[1743971138450,37.78250997,107.89,107.84,28.00550997]
[1743971138942,9.84,107.89,107.85,27.94250997]
[1743971139851,37.78250997,107.89,107.84,28.00550997]
[1743971140268,9.82,107.89,107.85,27.94250997]
[1743971142370,37.76250997,107.89,107.84,0.063]
[1743971142574,37.76250997,107.89,107.84,28.00550997]
[1743971142869,47.03130997,107.89,107.84,28.00550997]
[1743971143069,28.08467154,107.88,107.84,0.063]
[1743971143465,27.94250997,107.87,107.84,0.063]
[1743971143665,27.94250997,107.86,107.84,0.063]
[1743971143862,37.90467154,107.85,107.84,0.063]
[1743971144455,47.17677154,107.85,107.84,0.063]
[1743971144651,66.11074354,107.85,107.84,0.063]
[1743971147879,147.31074354,107.85,107.84,0.063]
[1743971154572,119.81779058,107.88,107.84,0.063]
[1743971154773,28.08467154,107.85,107.84,0.063]
[1743971155077,47.01864354,107.85,107.84,0.063]
[1743971155386,127.9343204,107.85,107.84,0.063]
[1743971155591,128.21864354,107.85,107.84,0.063]
[1743971156470,137.49074354,107.85,107.84,0.063]
[1743971158287,484.83074354,107.85,107.84,0.063]
[1743971158659,101.90133357,107.84,107.83,0.063]
[1743971158888,45.07613357,107.82,107.81,0.03]
[1743971159189,82.83864354,107.82,107.81,0.03]
[1743971159382,110.78115351,107.82,107.81,0.03]
[1743971160484,9.82,107.82,107.81,0.03]
[1743971161287,356.6128,107.85,107.81,0.03]
[1743971161288,347.34,107.85,107.81,29.59170997]
[1743971161494,347.34,107.85,107.83,27.94250997]
[1743971161967,0.063,107.9,107.84,27.94250997]
[1743971162167,9.883,107.9,107.87,27.94250997]
[1743971162375,0.063,107.9,107.89,27.94250997]
[1743971162775,0.063,107.9,107.88,10.8887]
[1743971162985,0.063,107.9,107.89,27.94250997]
[1743971163394,0.063,107.9,107.88,10.8887]
[1743971163572,0.063,107.9,107.89,27.94250997]
[1743971164588,0.063,107.9,107.89,37.21110997]
[1743971164785,0.063,107.9,107.89,9.2686]
[1743971164977,0.063,107.9,107.88,38.83080997]
[1743971165372,0.063,107.9,107.89,44.68028089]
[1743971166593,0.063,107.9,107.89,53.94888089]
[1743971166912,0.063,107.9,107.89,9.2686]
[1743971167092,0.063,107.9,107.86,50.86138089]
[1743971167297,54.54328089,107.9,107.85,53.95198089]
[1743971167487,44.68028089,107.88,107.84,10.8918]
[1743971167676,44.68028089,107.88,107.84,44.68028089]
[1743971168294,63.75641446,107.89,107.84,53.95318089]
[1743971168595,0.14216157,107.89,107.85,44.68028089]
[1743971169291,54.09144246,107.89,107.84,53.95318089]
[1743971170693,9.863,107.9,107.86,44.68028089]
[1743971170994,0.063,107.9,107.88,44.68028089]
[1743971171291,0.063,107.9,107.89,44.68028089]
[1743971171774,0.063,107.9,107.88,44.68028089]
[1743971171975,0.063,107.9,107.86,18.64964886]
[1743971172179,0.063,107.9,107.88,44.68028089]
[1743971172571,0.063,107.9,107.89,9.2686]
[1743971173598,0.063,107.9,107.88,53.94938089]
[1743971174102,0.063,107.9,107.89,44.68028089]
[1743971174703,0.063,107.9,107.89,53.94888089]
[1743971177617,0.063,107.9,107.89,9.2686]
[1743971177793,0.063,107.9,107.86,9.2712]
[1743971178099,0.063,107.9,107.86,53.95148089]
[1743971178984,0.063,107.9,107.86,9.2712]
[1743971179183,44.74328089,107.9,107.86,9.2712]